[Event "European Rapid Championship 2021"]
[Site "Katowice"]
[Date "2021.12.18"]
[Round "6.20"]
[White "Povilaitis, Tomas"]
[Black "Zakrzewski, Marek"]
[Result "0-1"]
[ECO "B23"]
[WhiteElo "2006"]
[BlackElo "2239"]
[Annotator "NA"]
[PlyCount "104"]
[EventDate "2021.12.18"]
[EventType "swiss"]
[EventCountry "POL"]
[SourceTitle "playchess.com"]
[Source "ChessBase"]
[SourceQuality "1"]
[TimeControl "900+10"]

1. e4 {[%emt 0:00:01]} c5 {[%emt 0:00:02]} 2. Nc3 {[%emt 0:00:02]} e6 {[%emt 0:
00:01]} 3. Nf3 {[%emt 0:00:01]} Nc6 {[%emt 0:00:02]} 4. Bb5 {[%emt 0:00:02]}
Nge7 {[%emt 0:00:16]} 5. O-O {[%emt 0:00:03]} a6 {[%emt 0:00:01]} 6. Bxc6 {
[%emt 0:00:02]} Nxc6 {[%emt 0:00:03]} 7. d4 {[%emt 0:00:03]} cxd4 {[%emt 0:00:
02]} 8. Nxd4 {[%emt 0:00:02]} Be7 {[%emt 0:01:22]} 9. Be3 {[%emt 0:01:13]} d6 {
[%emt 0:00:35]} 10. f4 {[%emt 0:01:39]} O-O {[%emt 0:00:08]} 11. f5 {[%emt 0:
00:19]} Bf6 {[%emt 0:01:11]} 12. Nxc6 {[%emt 0:01:16]} bxc6 {[%emt 0:00:02]}
13. Bd4 {[%emt 0:00:01]} e5 {[%emt 0:00:31]} 14. Be3 {[%emt 0:00:08]} Rb8 {
[%emt 0:00:10]} 15. b3 {[%emt 0:00:12]} Bb7 {[%emt 0:00:16]} 16. Na4 {[%emt 0:
00:11]} d5 {[%emt 0:01:12]} 17. Bb6 {[%emt 0:01:24]} Qd7 {[%emt 0:05:47]} 18.
Ba7 {[%emt 0:00:30]} Rbd8 {[%emt 0:00:06]} 19. Bb6 {[%emt 0:00:13]} Rb8 {
[%emt 0:00:02]} 20. Nc5 {[%emt 0:01:30]} Qe7 {[%emt 0:00:12]} 21. b4 {[%emt 0:
00:03]} Bc8 {[%emt 0:00:26]} 22. Ba5 {[%emt 0:00:03]} Rb5 {[%emt 0:00:20]} 23.
exd5 {[%emt 0:00:24]} Rxa5 {[%emt 0:00:40]} 24. d6 {[%emt 0:00:17]} Qa7 {
[%emt 0:00:04]} 25. d7 {[%emt 0:01:08]} Rb5 {[%emt 0:02:29]} 26. dxc8=N {
[%emt 0:00:19]} Rxc8 {[%emt 0:00:03]} 27. a3 {[%emt 0:00:58]} Be7 {[%emt 0:00:
45]} 28. f6 {[%emt 0:00:01]} Bxc5+ {[%emt 0:00:02]} 29. bxc5 {[%emt 0:00:01]}
Qxc5+ {[%emt 0:00:02]} 30. Kh1 {[%emt 0:00:01]} g6 {[%emt 0:00:48]} 31. Qd2 {
[%emt 0:01:46]} Re8 {[%emt 0:00:40]} 32. Qh6 {[%emt 0:03:35]} Qf8 {[%emt 0:00:
03]} 33. Qe3 {[%emt 0:00:04]} e4 {[%emt 0:00:07]} 34. Rf4 {[%emt 0:00:19]} Qc5
{[%emt 0:00:18]} 35. Qh3 {[%emt 0:00:57]} e3 {[%emt 0:00:18]} 36. Re1 {[%emt 0:
00:45]} h5 {[%emt 0:00:12]} 37. Qd7 {[%emt 0:00:35]} Rbb8 {[%emt 0:00:04]} 38.
Rff1 {[%emt 0:00:47]} Rbd8 {[%emt 0:00:17]} 39. Qc7 {[%emt 0:00:08]} Rd5 {
[%emt 0:01:18]} 40. Qf4 {[%emt 0:00:21]} e2 {[%emt 0:00:37]} 41. Rg1 {[%emt 0:
00:17]} Rf5 {[%emt 0:00:08]} 42. Qh6 {[%emt 0:00:01]} Rxf6 {[%emt 0:00:01]} 43.
h3 {[%emt 0:00:20]} Qxc2 44. Qg5 Rfe6 {[%emt 0:00:11]} 45. Qa5 {[%emt 0:00:09]}
Qc4 {[%emt 0:00:05]} 46. Rc1 {[%emt 0:00:03]} Qb5 {[%emt 0:00:13]} 47. Qd2 {
[%emt 0:00:13]} Qd5 {[%emt 0:00:12]} 48. Qb4 {[%emt 0:00:17]} Re4 {[%emt 0:00:
04]} 49. Qe1 {[%emt 0:00:09]} Rd4 {[%emt 0:00:15]} 50. Rb1 {[%emt 0:00:22]} Rd3
{[%emt 0:00:09]} 51. Kh2 {[%emt 0:00:09]} Rxa3 {[%emt 0:00:02]} 52. Rb2 {
[%emt 0:00:04]} Qe5+ {[%emt 0:00:02]} 0-1

[Event "European Rapid Championship 2021"]
[Site "Katowice"]
[Date "2021.12.18"]
[Round "6.21"]
[White "Luberanski, Jakub"]
[Black "Diermair, Andreas"]
[Result "1-0"]
[ECO "E36"]
[WhiteElo "2199"]
[BlackElo "2408"]
[Annotator "NA"]
[PlyCount "83"]
[EventDate "2021.12.18"]
[EventType "swiss"]
[EventCountry "POL"]
[SourceTitle "playchess.com"]
[Source "ChessBase"]
[SourceQuality "1"]
[TimeControl "900+10"]

1. d4 {[%emt 0:00:02]} Nf6 {[%emt 0:00:01]} 2. c4 {[%emt 0:00:01]} e6 {[%emt 0:
00:02]} 3. Nc3 {[%emt 0:00:02]} Bb4 {[%emt 0:00:03]} 4. Qc2 {[%emt 0:00:02]} d5
{[%emt 0:00:02]} 5. a3 {[%emt 0:00:01]} Bxc3+ {[%emt 0:00:13]} 6. Qxc3 {
[%emt 0:00:02]} dxc4 {[%emt 0:00:24]} 7. Qxc4 {[%emt 0:00:01]} b6 {[%emt 0:00:
02]} 8. Bg5 {[%emt 0:01:25]} Ba6 {[%emt 0:00:12]} 9. Bxf6 {[%emt 0:00:49]} Qxf6
{[%emt 0:00:50]} 10. Qa4+ {[%emt 0:01:12]} c6 {[%emt 0:00:47]} 11. e3 {[%emt 0:
00:15]} Bxf1 {[%emt 0:00:17]} 12. Kxf1 {[%emt 0:00:02]} e5 {[%emt 0:01:24]} 13.
Nf3 {[%emt 0:04:40]} exd4 {[%emt 0:00:06]} 14. Qxd4 {[%emt 0:00:02]} Qxd4 {
[%emt 0:00:38]} 15. Nxd4 {[%emt 0:00:02]} Ke7 {[%emt 0:00:23]} 16. Rd1 {
[%emt 0:00:41]} g6 {[%emt 0:00:24]} 17. Ke2 {[%emt 0:00:02]} Rd8 {[%emt 0:00:
43]} 18. Rc1 {[%emt 0:01:08]} c5 {[%emt 0:00:39]} 19. Nf3 {[%emt 0:00:02]} Nd7
{[%emt 0:02:05]} 20. Rhd1 {[%emt 0:01:30]} Rac8 {[%emt 0:00:06]} 21. Rc2 {
[%emt 0:00:42]} Nf6 {[%emt 0:01:04]} 22. Rcd2 {[%emt 0:00:03]} Rxd2+ {[%emt 0:
00:25]} 23. Nxd2 {[%emt 0:00:13]} b5 {[%emt 0:00:36]} 24. Rc1 {[%emt 0:00:14]}
Nd7 {[%emt 0:00:59]} 25. b4 {[%emt 0:01:15]} c4 {[%emt 0:00:39]} 26. Ne4 {
[%emt 0:00:02]} Ne5 {[%emt 0:00:39]} 27. Nc3 {[%emt 0:00:01]} a6 {[%emt 0:00:
41]} 28. a4 {[%emt 0:01:19]} Nd3 {[%emt 0:00:05]} 29. Ra1 {[%emt 0:00:05]} a5 {
[%emt 0:00:30]} 30. bxa5 {[%emt 0:00:35]} b4 {[%emt 0:00:05]} 31. Nd5+ {
[%emt 0:00:09]} Ke6 {[%emt 0:00:53]} 32. Nb6 {[%emt 0:00:04]} Rc5 {[%emt 0:01:
58]} 33. a6 {[%emt 0:01:14]} b3 {[%emt 0:00:25]} 34. a7 {[%emt 0:00:04]} b2 {
[%emt 0:00:08]} 35. Rb1 {[%emt 0:00:29]} Nc1+ {[%emt 0:00:32]} 36. Kd1 {
[%emt 0:00:28]} c3 {[%emt 0:00:07]} 37. Kc2 {[%emt 0:00:06]} Na2 {[%emt 0:00:
29]} 38. a8=Q {[%emt 0:00:05]} Nb4+ {[%emt 0:00:02]} 39. Kb3 {[%emt 0:00:03]}
c2 {[%emt 0:00:02]} 40. Qe4+ {[%emt 0:00:15]} Re5 {[%emt 0:00:21]} 41. Qc4+ {
[%emt 0:00:07]} Kd6 {[%emt 0:00:09]} 42. Qxb4+ {[%emt 0:00:04]} 1-0

[Event "European Rapid Championship 2021"]
[Site "Katowice"]
[Date "2021.12.18"]
[Round "6.21"]
[White "Krzywda, Andrzej"]
[Black "Walter, Szymon"]
[Result "0-1"]
[ECO "B24"]
[WhiteElo "2123"]
[BlackElo "2203"]
[Annotator "NA"]
[PlyCount "112"]
[EventDate "2021.12.18"]
[EventType "swiss"]
[EventCountry "POL"]
[SourceTitle "playchess.com"]
[Source "ChessBase"]
[SourceQuality "1"]
[TimeControl "900+10"]

1. e4 {[%emt 0:00:01]} c5 {[%emt 0:00:03]} 2. Nc3 {[%emt 0:00:02]} Nc6 {
[%emt 0:00:05]} 3. Bb5 {[%emt 0:00:13]} Nd4 {[%emt 0:00:11]} 4. Nf3 {[%emt 0:
00:02]} e6 {[%emt 0:00:30]} 5. O-O {[%emt 0:00:15]} a6 {[%emt 0:00:02]} 6. Bd3
{[%emt 0:00:12]} Nxf3+ {[%emt 0:00:14]} 7. Qxf3 {[%emt 0:00:04]} Bd6 {[%emt 0:
00:03]} 8. Qg4 {[%emt 0:04:11]} Nf6 {[%emt 0:00:42]} 9. Qh4 {[%emt 0:02:40]} b5
{[%emt 0:09:55]} 10. b3 {[%emt 0:00:18]} Be5 {[%emt 0:01:10]} 11. Bb2 {[%emt 0:
00:17]} Qc7 {[%emt 0:00:55]} 12. Rae1 {[%emt 0:00:55]} Bb7 {[%emt 0:01:11]} 13.
Kh1 {[%emt 0:03:01]} Bf4 {[%emt 0:01:15]} 14. Ne2 {[%emt 0:02:55]} Bxd2 {
[%emt 0:00:41]} 15. Rd1 {[%emt 0:00:08]} Ba5 {[%emt 0:00:04]} 16. c4 {[%emt 0:
01:11]} bxc4 {[%emt 0:00:21]} 17. bxc4 {[%emt 0:00:23]} Qd8 {[%emt 0:00:08]}
18. e5 {[%emt 0:01:01]} Ne4 {[%emt 0:00:26]} 19. Qg4 {[%emt 0:00:06]} Nd2 {
[%emt 0:00:11]} 20. Qxg7 {[%emt 0:00:15]} Rf8 {[%emt 0:00:05]} 21. Rg1 {
[%emt 0:00:16]} Qc7 {[%emt 0:00:15]} 22. Bc3 {[%emt 0:00:09]} Bxc3 {[%emt 0:00:
12]} 23. Nxc3 {[%emt 0:00:01]} Nf3 {[%emt 0:00:02]} 24. Rgf1 {[%emt 0:00:22]}
Qxe5 {[%emt 0:00:17]} 25. Qxe5 {[%emt 0:00:04]} Nxe5 {[%emt 0:00:02]} 26. Be4 {
[%emt 0:00:12]} Bxe4 {[%emt 0:00:10]} 27. Nxe4 {[%emt 0:00:02]} Nxc4 {[%emt 0:
00:03]} 28. Nf6+ {[%emt 0:00:14]} Ke7 {[%emt 0:00:04]} 29. Nxd7 {[%emt 0:00:12]
} Rfc8 {[%emt 0:00:20]} 30. Rc1 {[%emt 0:00:15]} Nd2 {[%emt 0:00:22]} 31. Rfd1
{[%emt 0:00:02]} Ne4 {[%emt 0:00:01]} 32. Kg1 {[%emt 0:00:05]} Rd8 {[%emt 0:00:
05]} 33. Ne5 {[%emt 0:00:18]} Rxd1+ {[%emt 0:00:15]} 34. Rxd1 {[%emt 0:00:01]}
Rc8 {[%emt 0:00:19]} 35. Rd7+ {[%emt 0:00:14]} Ke8 {[%emt 0:00:09]} 36. Rxf7 {
[%emt 0:00:19]} Rd8 {[%emt 0:00:08]} 37. Kf1 {[%emt 0:00:12]} Rd5 {[%emt 0:00:
08]} 38. Rxh7 {[%emt 0:00:09]} Rxe5 {[%emt 0:00:02]} 39. f4 {[%emt 0:00:03]}
Rf5 {[%emt 0:00:09]} 40. g3 {[%emt 0:00:18]} e5 {[%emt 0:00:04]} 41. Ra7 {
[%emt 0:00:10]} exf4 {[%emt 0:00:05]} 42. gxf4 {[%emt 0:00:01]} Rxf4+ {[%emt 0:
00:04]} 43. Ke1 {[%emt 0:00:05]} Rf6 {[%emt 0:00:11]} 44. h4 {[%emt 0:00:10]}
c4 {[%emt 0:00:18]} 45. Kd1 {[%emt 0:00:13]} c3 {[%emt 0:00:14]} 46. Rc7 {
[%emt 0:00:19]} Rf2 {[%emt 0:00:27]} 47. Rc6 {[%emt 0:00:11]} Kd7 {[%emt 0:00:
11]} 48. Rc4 {[%emt 0:00:11]} Rf4 {[%emt 0:00:07]} 49. Kc2 {[%emt 0:00:11]}
Rxh4 {[%emt 0:00:09]} 50. Rd4+ {[%emt 0:00:05]} Kc6 {[%emt 0:00:05]} 51. Rd8 {
[%emt 0:00:12]} Rh2+ {[%emt 0:00:10]} 52. Kc1 {[%emt 0:00:02]} Rxa2 {[%emt 0:
00:06]} 53. Re8 {[%emt 0:00:11]} Nc5 {[%emt 0:00:05]} 54. Kb1 {[%emt 0:00:10]}
Rb2+ {[%emt 0:00:03]} 55. Kc1 {[%emt 0:00:01]} Nd3+ {[%emt 0:00:03]} 56. Kd1 {
[%emt 0:00:02]} Rd2# {[%emt 0:00:02]} 0-1

[Event "European Rapid Championship 2021"]
[Site "Katowice"]
[Date "2021.12.18"]
[Round "6.22"]
[White "Gretarsson, Helgi Ass"]
[Black "Starek, Stanislav"]
[Result "1-0"]
[ECO "A52"]
[WhiteElo "2476"]
[BlackElo "2107"]
[Annotator "ChessBase"]
[PlyCount "67"]
[EventDate "2021.12.18"]
[EventType "swiss"]
[EventCountry "POL"]
[SourceTitle "playchess.com"]
[Source "ChessBase"]
[SourceQuality "1"]
[TimeControl "900+10"]

1. d4 {[%emt 0:00:02]} Nf6 {[%emt 0:00:04]} 2. c4 {[%emt 0:00:01]} e5 {[%emt 0:
00:01]} 3. dxe5 {[%emt 0:00:04]} Ng4 {[%emt 0:00:01]} 4. e4 {[%emt 0:01:15]}
Nxe5 {[%emt 0:00:05]} 5. f4 {[%emt 0:00:01]} Ng6 {[%emt 0:00:26]} 6. Nc3 {
[%emt 0:00:01]} Nc6 {[%emt 0:00:03]} 7. Be3 {[%emt 0:00:17]} Bb4 {[%emt 0:00:
10]} 8. Nge2 {[%emt 0:00:19]} O-O {[%emt 0:00:04]} 9. a3 {[%emt 0:00:01]} Bxc3+
{[%emt 0:00:15]} 10. Nxc3 {[%emt 0:00:02]} Re8 {[%emt 0:00:05]} 11. Qd2 {
[%emt 0:04:26]} d6 {[%emt 0:00:14]} 12. Bd3 {[%emt 0:00:33]} b6 {[%emt 0:01:38]
} 13. O-O {[%emt 0:00:45]} Bb7 {[%emt 0:00:10]} 14. Bc2 {[%emt 0:01:15]} a5 {
[%emt 0:00:07]} 15. b3 {[%emt 0:00:03]} Nf8 {[%emt 0:01:25]} 16. Rad1 {[%emt 0:
00:15]} Ne6 {[%emt 0:00:09]} 17. Qf2 {[%emt 0:00:03]} Nc5 {[%emt 0:00:26]} 18.
e5 {[%emt 0:00:04]} Qc8 {[%emt 0:01:51]} 19. exd6 {[%emt 0:00:43]} cxd6 {
[%emt 0:00:03]} 20. Nb5 {[%emt 0:00:29]} Qg4 {[%emt 0:01:07]} 21. h3 {[%emt 0:
00:04]} Qh5 {[%emt 0:01:02]} 22. Nxd6 {[%emt 0:01:13]} Re7 {[%emt 0:00:16]} 23.
Rd5 {[%emt 0:00:08]} Qh6 {[%emt 0:00:19]} 24. Nf5 {[%emt 0:00:08]} Qf6 {
[%emt 0:00:06]} 25. Bxc5 {[%emt 0:00:42]} bxc5 {[%emt 0:00:07]} 26. Nxe7+ {
[%emt 0:00:03]} Nxe7 {[%emt 0:00:01]} 27. Rxc5 {[%emt 0:00:07]} Nc6 {[%emt 0:
00:17]} 28. Be4 {[%emt 0:00:20]} Re8 {[%emt 0:00:07]} 29. Re1 {[%emt 0:01:00]}
Qc3 {[%emt 0:00:07]} 30. Bxh7+ {[%emt 0:00:08]} Kf8 {[%emt 0:00:23]} 31. Rxe8+
{[%emt 0:00:07]} Kxe8 {[%emt 0:00:01]} 32. Be4 {[%emt 0:00:06]} Qf6 {[%emt 0:
01:00]} 33. Qe3 {[%emt 0:00:43]} Kf8 {[%emt 0:00:10]} 34. Rxc6 {[%emt 0:00:03]}
1-0

[Event "European Rapid Championship 2021"]
[Site "Katowice"]
[Date "2021.12.18"]
[Round "6.22"]
[White "Gerasimenyuk, Mikhail"]
[Black "Kos, Pawel"]
[Result "0-1"]
[ECO "A48"]
[WhiteElo "1984"]
[BlackElo "2199"]
[Annotator "NA"]
[PlyCount "64"]
[EventDate "2021.12.18"]
[EventType "swiss"]
[EventCountry "POL"]
[SourceTitle "playchess.com"]
[Source "ChessBase"]
[SourceQuality "1"]
[TimeControl "900+10"]

1. d4 {[%emt 0:00:01]} Nf6 {[%emt 0:00:01]} 2. Nf3 {[%emt 0:00:01]} g6 {
[%emt 0:00:02]} 3. Bg5 {[%emt 0:00:01]} Bg7 {[%emt 0:00:02]} 4. e3 {[%emt 0:00:
02]} d6 {[%emt 0:00:10]} 5. Nbd2 {[%emt 0:00:05]} c6 {[%emt 0:00:03]} 6. Bd3 {
[%emt 0:00:04]} a6 {[%emt 0:00:03]} 7. c3 {[%emt 0:00:03]} b5 {[%emt 0:00:02]}
8. Qc2 {[%emt 0:00:07]} Bb7 {[%emt 0:00:09]} 9. O-O-O {[%emt 0:00:13]} Qa5 {
[%emt 0:01:03]} 10. Kb1 {[%emt 0:00:15]} c5 {[%emt 0:00:08]} 11. dxc5 {[%emt 0:
00:15]} dxc5 {[%emt 0:00:02]} 12. Bxf6 {[%emt 0:01:32]} exf6 {[%emt 0:01:23]}
13. Ne4 {[%emt 0:00:22]} O-O {[%emt 0:00:27]} 14. Nxc5 {[%emt 0:00:23]} Ra7 {
[%emt 0:00:15]} 15. h4 {[%emt 0:00:47]} f5 {[%emt 0:00:25]} 16. h5 {[%emt 0:00:
16]} b4 {[%emt 0:00:12]} 17. Nb3 {[%emt 0:00:36]} Qb6 {[%emt 0:00:18]} 18. hxg6
{[%emt 0:00:08]} hxg6 {[%emt 0:00:05]} 19. c4 {[%emt 0:00:09]} a5 {[%emt 0:00:
42]} 20. Nbd4 {[%emt 0:00:37]} b3 {[%emt 0:01:42]} 21. Qxb3 {[%emt 0:00:26]}
Qf6 {[%emt 0:00:25]} 22. c5 {[%emt 0:00:26]} Nd7 {[%emt 0:04:05]} 23. Qc2 {
[%emt 0:04:10]} Rc8 {[%emt 0:00:31]} 24. Rc1 {[%emt 0:01:27]} Nxc5 {[%emt 0:00:
52]} 25. Qe2 {[%emt 0:00:26]} Raa8 {[%emt 0:00:13]} 26. Ka1 {[%emt 0:00:59]} a4
{[%emt 0:00:30]} 27. Rc3 {[%emt 0:00:21]} Qb6 {[%emt 0:00:41]} 28. Rhc1 {
[%emt 0:00:22]} Bxf3 {[%emt 0:01:38]} 29. gxf3 {[%emt 0:00:35]} Nb3+ {[%emt 0:
00:10]} 30. Nxb3 {[%emt 0:00:44]} Bxc3 {[%emt 0:00:05]} 31. Rxc3 {[%emt 0:00:
20]} Rxc3 {[%emt 0:00:21]} 32. Nd2 {[%emt 0:01:08]} Rb8 {[%emt 0:01:07]} 0-1

[Event "European Rapid Championship 2021"]
[Site "Katowice"]
[Date "2021.12.18"]
[Round "6.23"]
[White "Wiewiora, Eneasz"]
[Black "Kolasa, Pjotrs"]
[Result "1-0"]
[ECO "C55"]
[WhiteElo "2333"]
[BlackElo "2051"]
[Annotator "NA"]
[PlyCount "77"]
[EventDate "2021.12.18"]
[EventType "swiss"]
[EventCountry "POL"]
[SourceTitle "playchess.com"]
[Source "ChessBase"]
[SourceQuality "1"]
[TimeControl "900+10"]

1. e4 {[%emt 0:00:02]} e5 {[%emt 0:00:02]} 2. Nf3 {[%emt 0:00:01]} Nc6 {
[%emt 0:00:02]} 3. Bc4 {[%emt 0:00:01]} Nf6 {[%emt 0:00:02]} 4. d3 {[%emt 0:00:
02]} Be7 {[%emt 0:00:02]} 5. O-O {[%emt 0:00:01]} O-O {[%emt 0:00:02]} 6. Re1 {
[%emt 0:00:02]} d6 {[%emt 0:00:02]} 7. a4 {[%emt 0:00:01]} Be6 {[%emt 0:00:25]}
8. Nbd2 {[%emt 0:00:02]} Qd7 {[%emt 0:00:02]} 9. c3 {[%emt 0:00:11]} Rae8 {
[%emt 0:00:45]} 10. b4 {[%emt 0:00:45]} Bd8 {[%emt 0:00:06]} 11. b5 {[%emt 0:
04:15]} Ne7 {[%emt 0:00:05]} 12. Bxe6 {[%emt 0:00:04]} fxe6 {[%emt 0:01:25]}
13. d4 {[%emt 0:00:07]} exd4 {[%emt 0:00:02]} 14. cxd4 {[%emt 0:00:03]} Ng6 {
[%emt 0:00:06]} 15. Nf1 {[%emt 0:01:15]} d5 {[%emt 0:04:56]} 16. Ne5 {[%emt 0:
02:22]} Qc8 {[%emt 0:01:14]} 17. Nxg6 {[%emt 0:00:58]} hxg6 {[%emt 0:00:01]}
18. e5 {[%emt 0:00:47]} Nh5 {[%emt 0:01:00]} 19. Qg4 {[%emt 0:00:26]} Kh7 {
[%emt 0:00:24]} 20. Ra3 {[%emt 0:00:02]} Qd7 {[%emt 0:01:36]} 21. Rh3 {[%emt 0:
02:47]} Qf7 {[%emt 0:00:38]} 22. Be3 {[%emt 0:00:36]} Kg8 {[%emt 0:00:29]} 23.
Rf3 {[%emt 0:00:17]} Qe7 {[%emt 0:01:29]} 24. Rxf8+ {[%emt 0:00:45]} Rxf8 {
[%emt 0:00:02]} 25. Qxg6 {[%emt 0:00:02]} Nf4 {[%emt 0:00:19]} 26. Qg4 {
[%emt 0:00:43]} Qg5 {[%emt 0:00:12]} 27. Qxg5 {[%emt 0:00:09]} Bxg5 {[%emt 0:
00:01]} 28. Bxf4 {[%emt 0:01:28]} Rxf4 {[%emt 0:00:16]} 29. Rd1 {[%emt 0:00:01]
} Kf8 {[%emt 0:01:04]} 30. Ng3 {[%emt 0:00:32]} Be7 {[%emt 0:00:37]} 31. Ne2 {
[%emt 0:00:10]} Re4 {[%emt 0:00:18]} 32. Kf1 {[%emt 0:00:05]} Ba3 {[%emt 0:00:
29]} 33. Rd3 {[%emt 0:00:21]} Bb2 {[%emt 0:00:10]} 34. g3 {[%emt 0:00:01]} Rg4
{[%emt 0:00:20]} 35. f4 {[%emt 0:00:07]} Ke8 {[%emt 0:00:52]} 36. Rb3 {[%emt 0:
00:11]} Ba1 {[%emt 0:00:05]} 37. Kf2 {[%emt 0:00:10]} c5 {[%emt 0:00:32]} 38.
bxc6 {[%emt 0:00:06]} bxc6 {[%emt 0:00:01]} 39. Rb1 {[%emt 0:00:05]} 1-0

[Event "European Rapid Championship 2021"]
[Site "Katowice"]
[Date "2021.12.18"]
[Round "6.23"]
[White "Danielyan, Vahe"]
[Black "Redzisz, Michal"]
[Result "1-0"]
[ECO "C42"]
[WhiteElo "2198"]
[BlackElo "2257"]
[Annotator "NA"]
[PlyCount "135"]
[EventDate "2021.12.18"]
[EventType "swiss"]
[EventCountry "POL"]
[SourceTitle "playchess.com"]
[Source "ChessBase"]
[SourceQuality "1"]
[TimeControl "900+10"]

1. e4 {[%emt 0:00:01]} e5 {[%emt 0:00:01]} 2. Nf3 {[%emt 0:00:01]} Nf6 {
[%emt 0:00:01]} 3. Nc3 {[%emt 0:00:38]} Bb4 {[%emt 0:00:00]} 4. Nxe5 {[%emt 0:
00:19]} O-O {[%emt 0:00:02]} 5. Be2 {[%emt 0:00:03]} Re8 {[%emt 0:00:08]} 6.
Nd3 {[%emt 0:00:01]} Bxc3 {[%emt 0:00:02]} 7. dxc3 {[%emt 0:00:01]} Nxe4 {
[%emt 0:00:01]} 8. O-O {[%emt 0:00:02]} d6 {[%emt 0:00:00]} 9. Nf4 {[%emt 0:00:
21]} b6 {[%emt 0:00:42]} 10. Bf3 {[%emt 0:00:03]} Bb7 {[%emt 0:00:00]} 11. Re1
{[%emt 0:00:09]} Nd7 {[%emt 0:00:12]} 12. a4 {[%emt 0:00:13]} a5 {[%emt 0:00:
55]} 13. Be3 {[%emt 0:00:27]} Qc8 {[%emt 0:07:53]} 14. Bd4 {[%emt 0:00:13]}
Nef6 {[%emt 0:00:48]} 15. Rxe8+ {[%emt 0:00:09]} Nxe8 {[%emt 0:00:01]} 16. Nd5
{[%emt 0:00:01]} Bxd5 {[%emt 0:01:06]} 17. Bxd5 c6 18. Bf3 {[%emt 0:00:08]} d5
{[%emt 0:00:01]} 19. Qd2 {[%emt 0:00:09]} Nef6 {[%emt 0:00:22]} 20. Re1 {
[%emt 0:00:03]} Qf8 {[%emt 0:00:29]} 21. c4 {[%emt 0:00:14]} Re8 {[%emt 0:00:
11]} 22. cxd5 {[%emt 0:00:03]} cxd5 {[%emt 0:01:02]} 23. g3 {[%emt 0:00:18]}
Re6 {[%emt 0:00:27]} 24. Qc3 {[%emt 0:00:41]} Rxe1+ {[%emt 0:01:06]} 25. Qxe1 {
[%emt 0:00:01]} Qd6 {[%emt 0:00:01]} 26. c3 {[%emt 0:00:11]} h6 {[%emt 0:00:09]
} 27. b4 {[%emt 0:00:01]} Qc6 {[%emt 0:00:45]} 28. Kg2 {[%emt 0:00:13]} Qxa4 {
[%emt 0:00:19]} 29. bxa5 {[%emt 0:00:21]} bxa5 {[%emt 0:00:05]} 30. Qe7 {
[%emt 0:00:02]} Qb5 {[%emt 0:00:40]} 31. Be2 {[%emt 0:00:08]} Qb8 {[%emt 0:00:
03]} 32. Bd3 {[%emt 0:00:18]} Qf8 {[%emt 0:00:27]} 33. Qe2 {[%emt 0:00:24]} a4
{[%emt 0:00:12]} 34. Qa2 {[%emt 0:00:13]} a3 {[%emt 0:00:04]} 35. Bf5 {[%emt 0:
00:08]} Qe7 {[%emt 0:00:29]} 36. h3 {[%emt 0:00:18]} Qd6 {[%emt 0:00:10]} 37.
Qb3 {[%emt 0:00:10]} g6 {[%emt 0:00:34]} 38. Bd3 {[%emt 0:00:07]} Ne4 {[%emt 0:
00:39]} 39. Qa4 {[%emt 0:00:15]} Nf8 {[%emt 0:00:42]} 40. Qa8 {[%emt 0:00:11]}
Kh7 {[%emt 0:00:28]} 41. Bc2 {[%emt 0:00:24]} h5 {[%emt 0:00:01]} 42. Bb3 {
[%emt 0:00:06]} h4 {[%emt 0:00:07]} 43. Qxd5 {[%emt 0:00:50]} Qxd5 {[%emt 0:00:
02]} 44. Bxd5 {[%emt 0:00:01]} Ne6 {[%emt 0:00:01]} 45. Be5 {[%emt 0:01:01]}
N4c5 {[%emt 0:00:25]} 46. Bc4 {[%emt 0:00:45]} hxg3 {[%emt 0:00:02]} 47. fxg3 {
[%emt 0:00:01]} Nd7 {[%emt 0:00:14]} 48. Bd6 {[%emt 0:00:08]} Ndc5 {[%emt 0:00:
27]} 49. Kf3 Kg7 50. Ba2 {[%emt 0:00:40]} Ng5+ {[%emt 0:00:22]} 51. Ke3 {
[%emt 0:00:17]} Na4 {[%emt 0:00:18]} 52. Bxa3 {[%emt 0:00:15]} Nxh3 {[%emt 0:
00:11]} 53. c4 {[%emt 0:00:08]} Kf6 {[%emt 0:00:13]} 54. Bb3 {[%emt 0:00:03]}
Nb6 {[%emt 0:00:01]} 55. c5 {[%emt 0:00:01]} Nc8 {[%emt 0:00:04]} 56. c6 {
[%emt 0:00:14]} Ng5 {[%emt 0:00:05]} 57. Kd4 {[%emt 0:00:54]} Na7 {[%emt 0:00:
04]} 58. Kd5 {[%emt 0:00:50]} Ne6 {[%emt 0:00:07]} 59. Bb2+ {[%emt 0:01:01]}
Ke7 {[%emt 0:00:11]} 60. Bc4 {[%emt 0:00:10]} f5 {[%emt 0:00:19]} 61. Ba3+ {
[%emt 0:00:20]} Kf6 {[%emt 0:00:08]} 62. Bd6 {[%emt 0:00:29]} g5 {[%emt 0:00:
11]} 63. Be5+ {[%emt 0:00:31]} Kf7 {[%emt 0:00:01]} 64. Bb8 {[%emt 0:01:07]}
Nxc6 {[%emt 0:00:40]} 65. Kxc6 {[%emt 0:00:06]} Kf6 {[%emt 0:00:01]} 66. Kd5 {
[%emt 0:00:04]} g4 {[%emt 0:00:19]} 67. Be5+ {[%emt 0:00:07]} Ke7 {[%emt 0:00:
02]} 68. Bd3 {[%emt 0:00:06]} 1-0

[Event "European Rapid Championship 2021"]
[Site "Katowice"]
[Date "2021.12.18"]
[Round "6.24"]
[White "Przybylski, Wojciech"]
[Black "Widelski, Kacper"]
[Result "1-0"]
[ECO "B39"]
[WhiteElo "2321"]
[BlackElo "1884"]
[Annotator "NA"]
[PlyCount "45"]
[EventDate "2021.12.18"]
[EventType "swiss"]
[EventCountry "POL"]
[SourceTitle "playchess.com"]
[Source "ChessBase"]
[SourceQuality "1"]
[TimeControl "900+10"]

1. e4 {[%emt 0:00:03]} c5 {[%emt 0:00:02]} 2. Nf3 {[%emt 0:00:03]} g6 {[%emt 0:
00:02]} 3. c4 {[%emt 0:00:12]} Bg7 {[%emt 0:00:03]} 4. d4 {[%emt 0:00:04]} cxd4
{[%emt 0:00:02]} 5. Nxd4 {[%emt 0:00:03]} Nc6 {[%emt 0:00:01]} 6. Be3 {[%emt 0:
00:32]} Nf6 {[%emt 0:00:03]} 7. Nc3 {[%emt 0:00:07]} Ng4 {[%emt 0:00:03]} 8.
Qxg4 {[%emt 0:00:08]} Nxd4 {[%emt 0:00:03]} 9. Qd1 {[%emt 0:00:27]} Ne6 {
[%emt 0:00:02]} 10. Be2 {[%emt 0:00:24]} Qa5 {[%emt 0:00:47]} 11. O-O {[%emt 0:
04:42]} Bxc3 {[%emt 0:01:19]} 12. bxc3 {[%emt 0:00:02]} Qxc3 {[%emt 0:01:01]}
13. c5 {[%emt 0:00:01]} Qe5 {[%emt 0:00:57]} 14. Qa4 {[%emt 0:07:21]} O-O {
[%emt 0:01:38]} 15. f4 {[%emt 0:00:03]} Qc3 {[%emt 0:00:08]} 16. Qb3 {[%emt 0:
00:40]} Qa5 {[%emt 0:02:02]} 17. Rac1 {[%emt 0:01:51]} Rb8 {[%emt 0:01:15]} 18.
f5 {[%emt 0:00:07]} Nd8 {[%emt 0:00:57]} 19. Bc4 {[%emt 0:00:29]} Kg7 {[%emt 0:
00:52]} 20. f6+ {[%emt 0:00:14]} exf6 {[%emt 0:00:12]} 21. Qb2 {[%emt 0:00:18]}
b5 {[%emt 0:00:48]} 22. Qxf6+ {[%emt 0:00:06]} Kg8 {[%emt 0:00:01]} 23. Bd4 {
[%emt 0:00:17]} 1-0